bitfinex/quotes_BTCUSD_20260126
["timestamp","ask_amount","ask_price","bid_price","bid_amount"]
[1769411575875,0.01136996,87951.0,87944.0,4.457e-05]
[1769411576082,0.0113697,87953.0,87944.0,4.457e-05]
[1769411576501,0.01136983,87952.0,87944.0,4.457e-05]
[1769411577141,0.0113697,87953.0,87944.0,4.457e-05]
[1769411577319,0.47740892,87954.0,87944.0,4.457e-05]
[1769411577534,0.11366074,87953.0,87944.0,4.457e-05]
[1769411577734,0.01136945,87955.0,87944.0,4.457e-05]
[1769411577936,0.11366046,87954.0,87944.0,4.457e-05]
[1769411578140,0.29018773,87957.0,87944.0,4.457e-05]
[1769411578299,0.24471088,87957.0,87944.0,4.457e-05]
[1769411578488,0.01136945,87955.0,87944.0,4.457e-05]
[1769411578688,0.23334169,87957.0,87944.0,4.457e-05]
[1769411578989,0.30155733,87957.0,87944.0,4.457e-05]
[1769411580125,0.24471088,87957.0,87944.0,4.457e-05]
[1769411580309,0.24471088,87957.0,87938.0,0.39377526]
[1769411580310,0.47740892,87954.0,87938.0,0.39377526]
[1769411580510,0.46603935,87950.0,87938.0,0.39377526]
[1769411580700,0.47740944,87950.0,87938.0,0.39377526]
[1769411580896,0.46603935,87950.0,87938.0,0.39377526]
[1769411581124,0.52288992,87950.0,87938.0,0.39377526]
[1769411581332,0.46603935,87950.0,87938.0,0.39377526]
[1769411582327,0.46603935,87950.0,87934.0,0.0001527]
[1769411582732,0.29511608,87948.0,87934.0,0.0001527]
[1769411582962,0.85749215,87950.0,87934.0,0.0001527]
[1769411583167,0.85749215,87950.0,87934.0,0.68689969]
[1769411583512,0.46603935,87950.0,87934.0,0.29312443]
[1769411583716,0.46603935,87950.0,87935.0,0.39377526]
[1769411583910,0.01136983,87952.0,87935.0,0.39377526]
[1769411584181,0.06821831,87953.0,87935.0,0.39377526]
[1769411584382,0.0113697,87953.0,87935.0,0.39377526]
[1769411585727,0.68668557,87954.0,87935.0,0.39377526]
[1769411586200,0.68668557,87954.0,87937.0,0.39547159]
[1769411586344,0.68668557,87954.0,87937.0,0.68848872]
[1769411586549,0.00011669,87954.0,87940.0,0.46603935]
[1769411586785,0.00011669,87954.0,87942.0,0.39547159]
[1769411590038,0.00011669,87954.0,87943.0,0.29301713]
[1769411590039,0.11382199,87953.0,87943.0,0.29301713]
[1769411590235,0.11382199,87952.0,87945.0,0.29301713]
[1769411590448,0.11382199,87951.0,87948.0,0.68848872]
[1769411590662,0.00011669,87954.0,87948.0,0.68848872]
[1769411590881,0.11382177,87953.0,87948.0,0.68848872]
[1769411591042,0.11382177,87952.0,87948.0,0.68848872]
[1769411591253,0.11382177,87951.0,87948.0,0.68848872]
[1769411591456,0.00011669,87954.0,87948.0,0.68848872]
[1769411591680,0.11382117,87953.0,87948.0,0.68848872]
[1769411591837,0.11382117,87952.0,87948.0,0.68848872]
[1769411592042,0.00011669,87954.0,87948.0,0.68848872]
[1769411592252,0.11382106,87953.0,87949.0,0.29301713]
[1769411592476,0.66315967,87966.0,87945.0,0.01137074]
[1769411592694,0.00021104,87966.0,87950.0,0.46603935]
[1769411592918,0.00021104,87966.0,87958.0,0.39547159]
[1769411593126,0.09109812,87976.0,87961.0,0.29301713]
[1769411593127,0.0001527,87976.0,87961.0,0.29301713]
[1769411593343,0.0001527,87976.0,87965.0,0.29301713]
[1769411593546,0.1748727,87985.0,87966.0,0.46603935]
[1769411593744,9.33e-05,87982.0,87968.0,0.29301713]
[1769411593947,9.33e-05,87982.0,87972.0,0.39547159]
[1769411594109,9.33e-05,87982.0,87972.0,0.39536347]
[1769411595188,9.33e-05,87982.0,87971.0,0.29301713]
[1769411595382,9.33e-05,87982.0,87966.0,0.39547159]
[1769411595597,9.33e-05,87982.0,87966.0,0.68848872]
[1769411596604,9.33e-05,87982.0,87967.0,0.39547159]
[1769411596888,9.33e-05,87982.0,87968.0,0.39547159]
[1769411606976,9.33e-05,87982.0,87968.0,0.70676509]
[1769411607636,9.33e-05,87982.0,87968.0,0.7065336]
[1769411608215,9.33e-05,87982.0,87971.0,0.40733441]
[1769411608451,9.33e-05,87982.0,87974.0,0.29943068]
[1769411608763,0.0001734,87992.0,87979.0,0.40733441]
[1769411608915,0.0001734,87992.0,87981.0,0.40733441]
[1769411610046,0.0001734,87992.0,87980.0,0.29943068]
[1769411610928,0.0001734,87992.0,87980.0,0.70676509]
[1769411612576,0.0001734,87992.0,87982.0,0.29943068]
[1769411612754,0.0001734,87992.0,87984.0,0.29943068]
[1769411613178,0.0001734,87992.0,87977.0,0.40733441]
[1769411613336,0.0001734,87992.0,87977.0,0.70676509]
[1769411613736,0.0001734,87992.0,87968.0,0.06820637]
[1769411613737,0.85299278,87990.0,87968.0,0.17468]
[1769411614056,0.85299278,87990.0,87971.0,0.40733441]
[1769411614257,0.85299278,87990.0,87973.0,0.70676509]
[1769411614490,0.85299278,87990.0,87974.0,0.40733441]
[1769411614674,0.02344918,87989.0,87974.0,0.40733441]
[1769411615131,0.85299278,87990.0,87974.0,0.40733441]
[1769411617533,0.85272177,87990.0,87974.0,0.40733441]
[1769411619938,0.30086733,87991.0,87974.0,0.40733441]
[1769411620343,0.69026019,87991.0,87974.0,0.69949576]
[1769411620547,0.69026019,87991.0,87975.0,0.38398534]
[1769411620781,0.30086733,87991.0,87975.0,0.38398534]
[1769411620990,0.30086733,87991.0,87976.0,0.38398534]
[1769411621195,0.0001734,87992.0,87977.0,0.02273321]
[1769411621390,0.11354172,87991.0,87977.0,0.02273321]
[1769411621597,0.11354172,87990.0,87977.0,0.02273321]
[1769411621777,0.0001734,87992.0,87977.0,0.02273321]
[1769411621953,0.1135415,87991.0,87977.0,0.02273321]
[1769411622155,0.0001734,87992.0,87977.0,0.02273321]
[1769411622367,0.11360828,87991.0,87977.0,0.02273321]
[1769411622585,0.11360828,87990.0,87977.0,0.02273321]
[1769411622797,0.11360828,87989.0,87977.0,0.40671855]
[1769411622953,0.11360828,87989.0,87976.0,0.29216135]
[1769411622954,0.0004,87996.0,87990.0,0.38398534]
[1769411623153,5.26349633,88000.0,87992.0,0.29216135]
[1769411623357,3.59985031,88000.0,87995.0,0.30352563]
[1769411623606,3.59985031,88000.0,87997.0,0.29216135]
[1769411624352,3.60031687,88000.0,87997.0,0.29216135]
[1769411626794,3.60031687,88000.0,87990.0,0.84975368]
[1769411627008,3.60031687,88000.0,87991.0,0.29216135]
[1769411629555,3.60031687,88000.0,87991.0,0.46680135]
[1769411633500,3.60031687,88000.0,87991.0,0.17464]
[1769411633708,3.42446036,88000.0,87992.0,0.29216135]
[1769411635971,3.13861113,88000.0,87992.0,0.29216135]
[1769411636170,2.05003726,88000.0,87997.0,0.29216135]
[1769411636447,2.05003726,88000.0,87993.0,0.03409362]
[1769411636448,2.05003726,88000.0,87999.0,0.29216135]
[1769411636987,2.05003726,88000.0,87999.0,0.63810109]
[1769411637222,2.04003726,88000.0,87998.0,0.34593974]
[1769411637434,2.04003726,88000.0,87997.0,0.01136402]
[1769411637435,2.04003726,88000.0,87999.0,0.66082862]
[1769411637593,2.04003726,88000.0,87999.0,0.63810109]
[1769411638244,2.04003726,88000.0,87999.0,0.29216135]
[1769411639055,2.04003726,88000.0,87999.0,0.71203177]
[1769411639984,2.04003726,88000.0,87999.0,0.29216135]
[1769411645585,2.04003726,88000.0,87999.0,0.8705534]
[1769411645739,1.10821606,88000.0,87999.0,0.98016164]
[1769411645905,0.91965709,88000.0,87999.0,0.98026211]
[1769411647939,0.40324899,88000.0,87999.0,0.05681882]
[1769411648140,0.001,88002.0,88001.0,0.98648028]
[1769411648363,0.00113991,88002.0,88001.0,1.10426275]
[1769411649024,0.00113991,88002.0,88001.0,0.51955077]
[1769411650578,0.00113991,88002.0,88001.0,0.1746]
[1769411651738,0.00054488,88002.0,88001.0,0.1746]
[1769411651939,8.203e-05,88002.0,88001.0,0.1746]
[1769411652124,8.203e-05,88002.0,88001.0,0.51955077]
[1769411655816,8.203e-05,88002.0,88001.0,0.5763683]
[1769411656114,8.203e-05,88002.0,88001.0,1.10426275]
[1769411656666,8.203e-05,88002.0,88001.0,1.16108028]
[1769411657340,0.0004002,88003.0,88002.0,1.12452062]
[1769411657753,0.0004,88005.0,88004.0,0.05681559]
[1769411657927,1e-08,88008.0,88005.0,0.06817794]
[1769411658129,1e-08,88008.0,88007.0,1.12451739]
[1769411659276,1e-08,88008.0,88007.0,1.06770373]
[1769411659483,1e-08,88008.0,88007.0,1.12451739]
[1769411662353,1e-08,88008.0,88007.0,1.06770373]
[1769411662952,1e-08,88008.0,88007.0,0.38768838]
[1769411663292,1e-08,88008.0,88007.0,0.37768838]
[1769411663469,0.71394783,88008.0,88007.0,0.1746]
[1769411664196,0.66730783,88008.0,88004.0,0.1746]
[1769411668184,0.48203069,88008.0,88004.0,0.1746]
[1769411669312,0.29547275,88008.0,88004.0,0.1746]
[1769411669928,0.29547275,88008.0,87998.0,0.46576834]
[1769411670254,0.29547275,88008.0,87999.0,0.1746]
[1769411674142,0.39137842,88012.0,87999.0,0.1746]
[1769411675253,0.39137842,88012.0,87999.0,0.18596376]
[1769411676104,0.39137842,88012.0,88000.0,0.02272727]
[1769411676494,0.0002,88012.0,88002.0,0.06818014]
[1769411676712,0.0002,88012.0,88003.0,0.02272649]
[1769411677952,0.0002,88012.0,88005.0,0.05681472]
[1769411678215,0.0002,88012.0,88006.0,0.02272572]
[1769411678413,0.0002,88012.0,88007.0,0.02272546]
[1769411678640,0.0002,88012.0,88006.0,0.38995072]
[1769411678838,0.0002,88012.0,88006.0,0.367225]
[1769411679650,0.0002,88012.0,88002.0,0.75923618]
[1769411679862,0.0002,88012.0,88003.0,0.02272649]
[1769411680049,0.0002,88012.0,88007.0,0.74787281]
[1769411680267,0.00314466,88013.0,88009.0,0.74787281]
[1769411680484,0.0002,88014.0,88010.0,0.367225]
[1769411680630,0.0002,88014.0,88007.0,0.06817599]
[1769411680631,0.0002,88014.0,88012.0,0.367225]
[1769411681065,0.0002,88014.0,88008.0,0.1746]
[1769411681584,0.0002,88014.0,88009.0,0.367225]
[1769411681795,0.0002,88014.0,88010.0,0.02272469]
[1769411682430,0.67748404,88023.0,88010.0,0.02272469]
[1769411682635,0.67748404,88023.0,88010.0,0.46528218]
[1769411682830,0.67748404,88023.0,88011.0,0.02272443]
[1769411683097,0.67748404,88023.0,88013.0,0.46528218]
[1769411684103,0.35061794,88022.0,88013.0,0.46528218]
[1769411684411,0.67748404,88021.0,88010.0,0.46528218]
[1769411684714,0.67748404,88021.0,88011.0,0.02272443]
[1769411685296,0.67748404,88020.0,88011.0,0.02272443]
[1769411691039,0.02272443,88019.0,88004.0,0.367225]
[1769411691250,0.67748404,88016.0,88005.0,0.17456]
[1769411692017,0.67748404,88015.0,88005.0,0.17456]
[1769411694703,0.00013986,88022.0,88005.0,0.63984218]
[1769411694906,0.67748404,88020.0,88010.0,0.46528218]
[1769411695157,0.67748404,88020.0,88011.0,0.01088239]
[1769411695355,0.35061794,88020.0,88011.0,0.01088239]
[1769411695597,0.67748404,88019.0,88011.0,0.01088239]
[1769411696899,0.67748404,88019.0,88010.0,0.46528218]
[1769411697064,0.35061794,88019.0,88011.0,0.01093321]
[1769411697262,0.35061794,88019.0,88010.0,0.46528218]
[1769411698068,1.02810198,88019.0,88010.0,0.46528218]
[1769411699092,0.00013986,88022.0,88010.0,0.46528218]
[1769411700477,0.6776239,88022.0,88010.0,0.46528218]
[1769411702427,0.00013986,88022.0,88010.0,0.46528218]
[1769411703143,0.00013986,88022.0,88005.0,0.55314799]
[1769411703357,0.00013986,88022.0,88010.0,0.46528218]
[1769411703765,0.00013986,88022.0,88010.0,1.58037999]
[1769411703948,0.00013986,88022.0,88011.0,0.3775039]
[1769411704289,0.00013986,88022.0,88011.0,0.367225]
[1769411704519,0.00013986,88022.0,88012.0,0.02272417]
[1769411709605,0.77868364,88027.0,88012.0,0.02272417]
[1769411709606,0.35631402,88027.0,88012.0,0.02272417]
[1769411709752,0.35631402,88027.0,88012.0,0.02286403]
[1769411713335,0.35719182,88027.0,88012.0,0.02286403]
[1769411713780,0.35719182,88027.0,88012.0,0.00013986]
[1769411713897,0.73845089,88027.0,88012.0,0.00013986]
[1769411714104,0.77365105,88014.0,87998.0,0.38514287]
[1769411715236,0.46528218,88010.0,87998.0,0.0001641]
[1769411715422,0.46528218,88010.0,87985.0,0.0001467]
[1769411715423,0.0113635,88001.0,87985.0,0.0001467]
[1769411715573,0.0113635,88001.0,87985.0,0.00028661]
[1769411715574,0.01136376,87999.0,87985.0,0.00028661]
[1769411715782,0.77339592,87998.0,87985.0,0.00028661]
[1769411715987,0.38125907,87995.0,87985.0,0.00028661]
[1769411716184,0.38125907,87993.0,87985.0,0.00028661]
[1769411716351,1.15465499,87993.0,87985.0,0.00028661]
[1769411716749,0.77311218,87994.0,87976.0,0.0001467]
[1769411717013,0.77311218,87992.0,87976.0,0.0001467]
[1769411717202,0.00013973,87994.0,87976.0,0.0001467]
[1769411717203,0.38125907,87989.0,87976.0,0.0001467]
[1769411718109,0.76645522,87990.0,87976.0,0.0001467]
[1769411719796,0.76645522,87988.0,87976.0,0.0001467]
[1769411720000,0.76645522,87984.0,87969.0,0.00057104]
[1769411720210,1.14142833,87982.0,87968.0,0.00071774]
[1769411720415,1.14142833,87982.0,87968.0,0.0001467]
[1769411720745,0.76645522,87981.0,87968.0,0.0001467]
[1769411721000,0.76645522,87979.0,87968.0,0.0001467]
[1769411721413,0.76645522,87979.0,87964.0,0.1746]
[1769411721414,0.37497311,87979.0,87964.0,0.1746]
[1769411721636,0.76645522,87978.0,87964.0,0.17516662]
[1769411722184,0.37497311,87979.0,87964.0,0.1865349]
[1769411722444,0.37497311,87979.0,87965.0,0.01136815]
[1769411722651,0.37497311,87979.0,87964.0,0.92832904]
[1769411723012,0.37497311,87979.0,87964.0,0.93969732]
[1769411723229,0.37497311,87979.0,87965.0,0.82193769]
[1769411723444,0.76645522,87983.0,87965.0,0.75372904]
[1769411724463,0.76645522,87983.0,87966.0,0.01136802]
[1769411724671,0.76645522,87983.0,87965.0,0.76509719]
[1769411725135,0.76645522,87983.0,87966.0,0.01136802]
[1769411725354,0.76645522,87983.0,87965.0,0.76509719]
[1769411725550,0.76645522,87983.0,87965.0,0.75372904]
[1769411726369,0.06818906,87991.0,87964.0,0.18596828]
[1769411726370,0.00013973,87994.0,87975.0,0.36593931]
[1769411726586,0.00013973,87994.0,87976.0,1.12023747]
[1769411726785,0.76645522,87993.0,87980.0,0.46528218]
[1769411726973,0.76645522,87993.0,87976.0,1.11966835]
[1769411726974,0.76645522,87993.0,87981.0,0.00056954]
[1769411727171,1.14142833,87993.0,87977.0,0.00056954]
[1769411727371,0.76645522,87992.0,87977.0,0.00056954]
[1769411727575,1.14142833,87991.0,87977.0,0.00056954]
[1769411727779,1.14142833,87991.0,87978.0,0.00056955]
[1769411727979,1.14142833,87991.0,87972.0,0.00056955]
[1769411728173,0.76645522,87991.0,87972.0,0.00056955]
[1769411728426,0.76645522,87989.0,87971.0,0.00056958]
[1769411728632,0.37497311,87987.0,87971.0,0.00056958]
[1769411728805,0.76645522,87986.0,87971.0,0.00056958]
[1769411729433,0.37497311,87987.0,87971.0,0.75429862]
[1769411729615,0.37497311,87987.0,87971.0,0.75372904]
[1769411732885,0.00013973,87994.0,87972.0,0.43414224]
[1769411733160,0.76645522,87993.0,87973.0,1.11966835]
[1769411733310,1.14142833,87993.0,87973.0,1.11966835]
[1769411733717,0.76645522,87993.0,87973.0,1.11966835]
[1769411733956,1.14142833,87992.0,87973.0,1.11966835]
[1769411734485,1.14142833,87992.0,87977.0,0.75372904]
[1769411734486,0.37497311,87992.0,87977.0,0.75372904]
[1769411734676,0.00013973,87994.0,87977.0,1.11585114]
[1769411735430,0.00013973,87994.0,87978.0,0.00042646]
[1769411736262,0.78769194,87994.0,87978.0,0.00042646]
[1769411738377,1.14750278,87994.0,87978.0,0.02273295]
[1769411739214,0.00013973,87994.0,87978.0,0.02273295]
[1769411739378,1.14736305,87993.0,87978.0,0.02273295]
[1769411740007,0.35981084,87993.0,87978.0,0.02273295]
[1769411740583,0.04548,88011.0,87993.0,0.01]
[1769411740806,0.11329351,88008.0,87994.0,0.74991183]
[1769411741007,0.04548,88011.0,87993.0,0.3555649]
[1769411741008,0.04548,88011.0,88000.0,0.74991183]
[1769411741182,0.01136105,88020.0,88000.0,0.3455649]
[1769411741183,0.82545476,88020.0,88000.0,0.3455649]
[1769411741384,0.82545476,88020.0,88001.0,0.74991183]
[1769411741385,0.35981084,88020.0,88001.0,0.74991183]
[1769411741584,0.01136118,88019.0,88001.0,1.09547673]
[1769411741994,0.80174563,88019.0,88001.0,1.09547673]
[1769411742197,0.01136131,88018.0,88001.0,1.09547673]
[1769411743234,0.01136169,88015.0,87990.0,0.46564392]
[1769411743468,0.79038445,88013.0,87992.0,1.09547673]
[1769411743657,0.92433932,88010.0,87992.0,1.09547673]
[1769411743807,0.46564392,88010.0,87992.0,0.3455649]
[1769411744160,0.79038445,88007.0,87992.0,0.3455649]
[1769411745386,0.79038445,88005.0,87984.0,0.3569306]
[1769411745543,0.79038445,88004.0,87985.0,0.01136557]
[1769411745882,0.79038445,88004.0,87985.0,0.35693047]
[1769411746192,0.79038445,88004.0,87985.0,0.3455649]
[1769411746329,0.46564392,88000.0,87985.0,0.3455649]
[1769411746530,1.15019529,87997.0,87984.0,0.00046656]
[1769411746770,0.79038445,87994.0,87984.0,0.00046656]
[1769411746971,0.79038445,87992.0,87984.0,0.00046656]
[1769411747756,0.35981084,87991.0,87976.0,0.1763048]
[1769411747961,0.79022049,87989.0,87976.0,0.1746]
[1769411748766,0.79022049,87989.0,87975.0,0.000232]
[1769411749810,0.35981084,87988.0,87975.0,0.000232]
[1769411750031,0.79038012,87985.0,87975.0,0.000232]
[1769411750257,0.79038012,87983.0,87975.0,0.000232]
[1769411752293,0.35981084,87984.0,87975.0,0.000232]
[1769411752612,0.79038012,87989.0,87975.0,0.000232]
[1769411754325,0.00046618,87991.0,87975.0,0.3457969]
[1769411754693,0.7908463,87991.0,87975.0,0.3457969]
[1769411755183,0.00046618,87991.0,87975.0,0.75014383]
[1769411755389,0.00046618,87991.0,87977.0,0.74991183]
[1769411755591,0.00046618,87991.0,87978.0,0.3455649]
[1769411755788,0.00046618,87991.0,87980.0,0.46564392]
[1769411756703,0.00046618,87991.0,87981.0,0.02273218]
[1769411756900,0.00046618,87991.0,87983.0,0.74991183]
[1769411757223,0.00046618,87991.0,87984.0,1.09547673]
[1769411757790,0.00046618,87991.0,87985.0,0.02273114]
[1769411759360,0.79146171,88006.0,87987.0,0.74991183]
[1769411759698,0.11347446,88005.0,87992.0,0.3455649]
[1769411759898,0.11347446,88004.0,87992.0,0.34603108]
[1769411760223,0.78056037,88002.0,87992.0,0.00046618]
[1769411760362,0.78056037,88000.0,87992.0,0.00046618]
[1769411760723,0.11347446,87999.0,87992.0,0.00046618]
[1769411760879,0.11347446,87998.0,87992.0,0.00046618]
[1769411761077,0.35981084,88002.0,87992.0,0.00046618]
[1769411761251,0.11347138,88001.0,87992.0,0.00046618]
[1769411761448,0.11347138,88000.0,87992.0,0.00046618]
[1769411761659,0.11347138,87999.0,87992.0,0.00046618]
[1769411761896,0.28093057,88002.0,87992.0,0.00046618]
[1769411762474,0.78056037,88005.0,87992.0,0.00046618]
[1769411762887,0.46564392,88010.0,87993.0,0.3455649]
[1769411763072,0.46564392,88010.0,87994.0,0.3455649]
[1769411763277,0.01136221,88011.0,87994.0,0.3455649]
[1769411763532,0.53381813,88010.0,87994.0,0.3455649]
[1769411763734,0.78056037,88009.0,87994.0,0.3455649]
[1769411765185,0.77154958,88015.0,87999.0,0.46564392]
[1769411765355,0.01136105,88020.0,88000.0,0.46564392]
[1769411765514,0.77154958,88026.0,88004.0,0.75335926]
[1769411765716,0.77154958,88026.0,88001.0,0.0113635]
[1769411765717,0.0113604,88025.0,88007.0,0.75335926]
[1769411765962,0.0113604,88025.0,88008.0,0.3845226]
[1769411766164,0.01136053,88024.0,88008.0,0.3845226]
[1769411766375,0.01247046,88023.0,88008.0,0.3845226]
[1769411766554,0.06927401,88023.0,88008.0,0.3845226]
[1769411766964,0.77265938,88023.0,88008.0,0.3845226]
[1769411767160,0.77265938,88023.0,87997.0,0.06818371]
[1769411767161,0.01136221,88011.0,87993.0,0.3845226]
[1769411767364,0.77154958,88009.0,87994.0,0.00051348]
[1769411767707,0.77154958,88009.0,87993.0,0.3845226]
[1769411769347,0.47700626,88010.0,87981.0,0.3845226]
[1769411769348,0.77154958,88001.0,87981.0,0.3845226]
[1769411769748,0.39337197,88002.0,87986.0,0.75335926]
[1769411769964,0.39337197,88002.0,87987.0,0.00042264]
[1769411770979,0.77154958,88007.0,87987.0,0.00042264]
[1769411770980,0.39337197,88007.0,87987.0,0.00042264]
[1769411771193,0.77154958,88006.0,87987.0,0.00042264]
[1769411771631,0.77154958,88006.0,87990.0,0.3845226]
[1769411773875,0.47700626,88010.0,87992.0,0.38498878]
[1769411774095,1.2371935,88010.0,87992.0,0.38498878]
[1769411774294,0.46564392,88010.0,87994.0,0.3845226]
[1769411774567,0.46564392,88010.0,87995.0,0.3845226]
[1769411775123,0.39337197,88012.0,87996.0,0.75335926]
[1769411775321,0.46564392,88010.0,87997.0,0.3845226]
[1769411775601,0.01136195,88013.0,87998.0,0.00093461]
[1769411775805,0.06817146,88014.0,87998.0,0.00093461]
[1769411775810,0.46564392,88010.0,87998.0,0.00093461]
[1769411778474,0.02840618,88009.0,87998.0,0.00093461]
[1769411779288,0.46564392,88010.0,87998.0,0.00093461]
[1769411779873,0.09658119,88009.0,87992.0,0.80014855]
[1769411780076,0.78075366,88009.0,87992.0,1.19482906]
[1769411780391,0.0113626,88008.0,87992.0,1.19482906]
[1769411780595,0.38232642,88006.0,87992.0,0.00046618]
[1769411780762,0.74098501,88004.0,87992.0,0.00046618]
[1769411783071,0.38232642,88005.0,87992.0,0.00046618]
[1769411783296,0.02169393,88004.0,87992.0,0.00046618]
[1769411785198,0.38232642,88005.0,87992.0,0.00046618]
[1769411785509,0.52245608,88010.0,87992.0,0.39514669]
[1769411785697,0.01915724,88009.0,87992.0,0.39514669]
[1769411785864,0.76014225,88009.0,87992.0,0.39514669]
[1769411786069,0.74098501,88009.0,87992.0,0.39514669]
[1769411786293,0.80916165,88007.0,87992.0,0.39514669]
[1769411786486,0.74098501,88005.0,87992.0,0.00046618]
[1769411786685,0.02147274,88004.0,87992.0,0.00046618]
[1769411786899,0.77382086,88004.0,87992.0,0.00046618]
[1769411787132,0.75234812,88004.0,87992.0,0.00046618]
[1769411787510,0.01136286,88006.0,87992.0,0.00046618]
[1769411787720,0.74098501,88004.0,87992.0,0.00046618]
[1769411789267,1.13467416,88007.0,87992.0,0.00046618]
[1769411789478,0.01823474,88006.0,87992.0,0.00046618]
[1769411789749,0.0295976,88006.0,87992.0,0.00046618]
[1769411790295,0.77058261,88006.0,87992.0,0.00046618]
[1769411790510,0.80916226,88006.0,87992.0,0.00046618]
[1769411790912,0.74098501,88006.0,87992.0,0.00046618]
[1769411791076,0.75234787,88006.0,87992.0,0.00046618]
[1769411791402,0.74098501,88006.0,87992.0,0.00046618]
[1769411791622,0.38232642,88007.0,87992.0,0.00046618]
[1769411791821,0.01569749,88006.0,87992.0,0.00046618]
[1769411792228,0.01569749,88006.0,87992.0,0.01626042]
[1769411794540,0.01569749,88006.0,87992.0,0.00046618]
[1769411794980,0.02706035,88006.0,87992.0,0.00046618]
[1769411795344,0.01569749,88006.0,87992.0,0.00046618]
[1769411797036,0.02706035,88006.0,87992.0,0.00046618]
[1769411797241,0.01569749,88006.0,87992.0,0.00046618]
[1769411798247,0.02706035,88006.0,87992.0,0.00046618]
[1769411798429,0.01136299,88005.0,87992.0,0.00046618]
[1769411798602,0.01998803,88004.0,87992.0,0.00046618]
[1769411798806,0.03135114,88004.0,87992.0,0.00046618]
[1769411799021,0.01998803,88004.0,87992.0,0.00046618]
[1769411800263,0.01841999,88005.0,87992.0,0.00046618]
[1769411801710,0.02978298,88005.0,87992.0,0.00046618]
[1769411802208,0.01841999,88005.0,87992.0,0.00046618]
[1769411804130,0.01658434,88004.0,87992.0,0.00046618]
[1769411804340,0.02062759,88006.0,87992.0,0.00046618]
[1769411804502,0.11375072,88005.0,87992.0,0.00046618]
[1769411804710,0.02265956,88004.0,87992.0,0.00046618]
[1769411804909,0.01136299,88005.0,87992.0,0.00046618]
[1769411805154,0.02072399,88006.0,87993.0,0.77163726]
[1769411805307,0.01136311,88004.0,87993.0,0.77163726]
[1769411805533,0.01136324,88003.0,87992.0,0.00046618]
[1769411805733,0.03677665,88004.0,87992.0,0.00046618]
[1769411805938,0.01136324,88003.0,87992.0,0.00046618]
[1769411806136,0.0113635,88001.0,87991.0,0.39468051]
[1769411806412,0.01136363,88000.0,87991.0,0.39468051]
[1769411806659,0.06864784,88001.0,87991.0,0.39468051]
[1769411806831,0.01136376,87999.0,87991.0,0.39468051]
[1769411806996,0.01136363,88000.0,87991.0,0.38723769]
[1769411807216,0.01182997,88001.0,87991.0,0.38723769]
[1769411807410,0.01136363,88000.0,87991.0,0.38723769]
[1769411807911,0.06818194,88000.0,87991.0,0.38723769]
[1769411808142,0.01136363,88000.0,87991.0,0.38723769]
[1769411808969,0.01182997,88001.0,87991.0,0.38723769]
[1769411809170,0.06864753,88001.0,87991.0,0.38723769]
[1769411809356,0.06818205,88000.0,87991.0,0.38723769]
[1769411809554,0.01136376,87999.0,87991.0,0.38723769]
[1769411809756,0.01136363,88000.0,87991.0,0.38723769]
[1769411809959,0.06864753,88001.0,87991.0,0.38723769]
[1769411810160,0.01136363,88000.0,87991.0,0.38723769]
[1769411810596,0.01136376,87999.0,87991.0,0.38723769]
[1769411810897,0.01182997,88001.0,87991.0,0.38723769]
[1769411811037,0.00046647,88001.0,87991.0,0.38723769]
[1769411811241,0.00046647,88001.0,87980.0,0.46554907]
[1769411811243,0.01136402,87997.0,87980.0,0.46554907]
[1769411811455,0.01136402,87997.0,87982.0,0.37594382]
[1769411811675,0.01136402,87997.0,87984.0,0.37594382]
[1769411811884,0.01136428,87995.0,87984.0,0.37594382]
[1769411812418,0.01136415,87996.0,87985.0,0.37594382]
[1769411812577,0.06818523,87996.0,87985.0,0.37594382]
[1769411812782,0.06818528,87996.0,87985.0,0.37594382]
[1769411812965,0.00046647,88001.0,87985.0,0.37594382]
[1769411813168,0.06818391,87998.0,87985.0,0.77163726]
[1769411813374,0.01136415,87996.0,87986.0,0.37594382]
[1769411814000,0.01136402,87997.0,87986.0,0.37594382]
[1769411814426,0.06818424,87997.0,87986.0,0.37594382]
[1769411814601,0.01136428,87995.0,87986.0,0.37594382]
[1769411815195,0.01136402,87997.0,87986.0,1.14758108]
[1769411815368,0.06818435,87997.0,87986.0,1.14758108]
[1769411815571,0.01136415,87996.0,87986.0,1.14758108]
[1769411815783,0.01136415,87996.0,87987.0,0.37594382]
[1769411815961,0.0681842,87997.0,87987.0,0.37594382]
[1769411816165,0.01136415,87996.0,87987.0,0.37594382]
[1769411816341,0.01136402,87997.0,87987.0,0.37594382]
[1769411816556,0.01136376,87999.0,87987.0,0.37594382]
[1769411816739,0.06818301,87999.0,87987.0,0.37594382]
[1769411816944,0.00046647,88001.0,87989.0,0.46554907]
[1769411817191,0.00046647,88001.0,87978.0,0.01136647]
[1769411817192,0.00046647,88001.0,87990.0,1.16929784]
[1769411817528,0.00046647,88001.0,87990.0,1.61313015]
[1769411817661,0.00046647,88001.0,87990.0,1.14758108]
[1769411818079,0.01182997,88001.0,87990.0,1.14758108]
[1769411818453,0.01136363,88000.0,87990.0,0.37594382]
[1769411818649,0.01136389,87998.0,87990.0,0.37594382]
[1769411819101,0.01136363,88000.0,87990.0,0.37594382]
[1769411819308,0.06864768,88001.0,87990.0,0.37594382]
[1769411819678,0.01136363,88000.0,87990.0,0.37594382]
[1769411820665,0.05728421,88001.0,87991.0,0.02159619]
[1769411820872,0.00046647,88001.0,87992.0,0.77163726]
[1769411821076,0.00046647,88001.0,87993.0,0.02159569]
[1769411821710,0.00046647,88001.0,87997.0,0.77163726]
[1769411821856,0.01136273,88007.0,87998.0,0.3986716]
[1769411822054,0.01143689,88007.0,87998.0,0.37594382]
[1769411822667,0.01136299,88005.0,87998.0,0.37594382]
[1769411823122,0.06825116,88007.0,87999.0,0.02272753]
[1769411823323,0.01136299,88005.0,87999.0,0.02272753]
[1769411823518,0.01136286,88006.0,87999.0,0.02272753]
[1769411823723,7.416e-05,88007.0,87999.0,0.02272753]
[1769411823931,0.12501671,88006.0,87999.0,0.02272753]
[1769411824133,0.01136286,88006.0,87999.0,0.02272753]
[1769411824554,0.01136299,88005.0,87999.0,0.02272753]
[1769411824684,0.01136286,88006.0,87999.0,0.02272753]
[1769411825488,0.01136286,88006.0,87991.0,0.74672159]
[1769411825700,7.416e-05,88007.0,87994.0,0.42114031]
[1769411825905,0.01143689,88007.0,87996.0,1.1678619]
[1769411826840,0.06825089,88007.0,87996.0,1.1678619]
[1769411827062,0.01136286,88006.0,87996.0,1.1678619]
[1769411827274,0.01136299,88005.0,87996.0,1.1678619]
[1769411827912,0.06817741,88006.0,87996.0,1.1678619]
[1769411827913,0.01136286,88006.0,87996.0,1.1678619]
[1769411828119,0.01136286,88006.0,87997.0,0.74672159]
[1769411829059,0.01136299,88005.0,87997.0,0.74672159]
[1769411829202,0.01136311,88004.0,87996.0,0.42114031]
[1769411829574,0.06817903,88004.0,87997.0,0.00068634]
[1769411829713,0.01136363,88000.0,87997.0,0.00068634]
[1769411829920,7.416e-05,88007.0,87992.0,0.00068634]
[1769411830113,0.05681538,88006.0,87993.0,0.74672159]
[1769411830347,0.01136311,88004.0,87994.0,0.00068632]